fUSD/lending_fUSD_20240803
["ID","MTS","AMOUNT","RATE_DAILY","PERIOD"]
[333943892,1722643841480,-500.0,0.00016438,2]
[333943894,1722643841491,-1129.1,0.00016438,2]
[333943896,1722643841506,-200.68830932,0.00016438,2]
[333943899,1722643841523,-299.31169068,0.00016438,2]
[333943901,1722643841535,-500.0,0.00016438,2]
[333943903,1722643841546,-500.0,0.00016438,2]
[333943905,1722643841556,-593.61,0.00016438,2]
[333943907,1722643841566,-500.0,0.00016438,2]
[333943909,1722643841576,-500.0,0.00016438,2]
[333943911,1722643841585,-500.0,0.00016438,2]
[333943913,1722643841595,-500.0,0.00016438,2]
[333943915,1722643841604,-500.0,0.00016438,2]
[333943917,1722643841614,-500.0,0.00016438,2]
[333943919,1722643841624,-500.0,0.00016438,2]
[333943921,1722643841634,-500.0,0.00016438,2]
[333943923,1722643841646,-500.0,0.00016438,2]
[333943925,1722643841656,-500.0,0.00016438,2]
[333943927,1722643841666,-500.0,0.00016438,2]
[333943929,1722643841676,-350.0,0.00016438,2]
[333943931,1722643841684,-591.1,0.00016438,2]
[333943933,1722643841694,-500.0,0.00016438,2]
[333943935,1722643841703,-350.0,0.00016438,2]
[333943937,1722643841713,-500.0,0.00016438,2]
[333943939,1722643841723,-500.0,0.00016438,2]
[333943941,1722643841732,-500.0,0.00016438,2]
[333943943,1722643841742,-798.15,0.00016438,2]
[333943945,1722643841753,-500.0,0.00016438,2]
[333943947,1722643841763,-1335.98,0.00016438,2]
[333943949,1722643841773,-500.0,0.00016438,2]
[333943951,1722643841782,-500.0,0.00016438,2]
[333943952,1722643841791,-500.0,0.00016438,2]
[333943954,1722643841802,-500.0,0.00016438,2]
[333943956,1722643841811,-734.75,0.00016438,2]
[333943957,1722643841821,-500.0,0.00016438,2]
[333943958,1722643841831,-500.0,0.00016438,2]
[333943959,1722643841841,-518.22,0.00016438,2]
[333943960,1722643841851,-500.0,0.00016438,2]
[333943961,1722643841860,-500.0,0.00016438,2]
[333943962,1722643841870,-500.0,0.00016438,2]
[333943963,1722643841880,-755.06,0.00016438,2]
[333943965,1722643841890,-689.9,0.00016438,2]
[333943967,1722643841899,-976.85,0.00016438,2]
[333943969,1722643841909,-500.0,0.00016438,2]
[333943971,1722643841920,-500.0,0.00016438,2]
[333943973,1722643841929,-847.5,0.00016438,2]
[333943974,1722643841939,-214.29491614,0.00016438,2]
[333943977,1722643841949,-500.0,0.00016438,2]
[333943979,1722643841959,-897.82,0.00016438,2]
[333943981,1722643841969,-1162.02,0.00016438,2]
[333943983,1722643841978,-500.0,0.00016438,2]
[333943985,1722643841988,-500.0,0.00016438,2]
[333943986,1722643841998,-1007.52,0.00016438,2]
[333943988,1722643842007,-500.0,0.00016438,2]
[333943990,1722643842017,-500.0,0.00016438,2]
[333943992,1722643842027,-579.47,0.00016438,2]
[333943994,1722643842037,-500.0,0.00016438,2]
[333943996,1722643842047,-976.96,0.00016438,2]
[333943998,1722643842057,-500.0,0.00016438,2]
[333944000,1722643842067,-500.0,0.00016438,2]
[333944002,1722643842078,-500.0,0.00016438,2]
[333944004,1722643842089,-500.0,0.00016438,2]
[333944005,1722643842098,-500.0,0.00016438,2]
[333944007,1722643842108,-500.0,0.00016438,2]
[333944009,1722643842118,-124.40507301,0.00016438,2]
[333944015,1722643842163,-90.78310722,0.00016438,2]
[333944017,1722643842172,-212.37692278,0.00016438,2]
[333944019,1722643842185,-287.62307722,0.00016438,2]
[333944021,1722643842195,-27.37692278,0.00016438,2]
[333944023,1722643842207,-337.30490556,0.00016438,2]
[333944025,1722643842218,-1305.27,0.00016438,2]
[333944027,1722643842228,-1053.67,0.00016438,2]
[333944029,1722643842238,-500.0,0.00016438,2]
[333944031,1722643842248,-538.18,0.00016438,2]
[333944033,1722643842258,-1640.58,0.00016438,2]
[333944035,1722643842268,-804.33,0.00016438,2]
[333944037,1722643842278,-500.0,0.00016438,2]
[333944039,1722643842288,-679.17,0.00016438,2]
[333944041,1722643842298,-500.0,0.00016438,2]
[333944044,1722643842308,-500.0,0.00016438,2]
[333944046,1722643842318,-1152.36,0.00016438,2]
[333944048,1722643842327,-500.0,0.00016438,2]
[333944051,1722643842337,-1407.78,0.00016438,2]
[333944052,1722643842347,-500.0,0.00016438,2]
[333944054,1722643842356,-500.0,0.00016438,2]
[333944056,1722643842366,-500.0,0.00016438,2]
[333944059,1722643842375,-500.0,0.00016438,2]
[333944061,1722643842385,-500.0,0.00016438,2]
[333944064,1722643842400,-500.0,0.00016438,2]
[333944066,1722643842410,-798.08,0.00016438,2]
[333944068,1722643842420,-500.0,0.00016438,2]
[333944070,1722643842430,-500.0,0.00016438,2]
[333944072,1722643842439,-743.05,0.00016438,2]
[333944074,1722643842449,-512.59,0.00016438,2]
[333944075,1722643842460,-423.67127552,0.00016438,2]
[333944078,1722643842473,-1237.56,0.00016438,2]
[333944081,1722643842482,-552.74,0.00016438,2]
[333944085,1722643842493,-1372.25,0.00016438,2]
[333944087,1722643842503,-500.0,0.00016438,2]
[333944089,1722643842513,-1076.27,0.00016438,2]
[333944091,1722643842523,-500.0,0.00016438,2]
[333944093,1722643842534,-500.0,0.00016438,2]
[333944095,1722643842546,-1271.93,0.00016438,2]
[333944097,1722643842555,-500.0,0.00016438,2]
[333944099,1722643842565,-500.0,0.00016438,2]
[333944101,1722643842575,-500.0,0.00016438,2]
[333944103,1722643842584,-500.0,0.00016438,2]
[333944105,1722643842594,-500.0,0.00016438,2]
[333944107,1722643842604,-850.89,0.00016438,2]
[333944109,1722643842614,-500.0,0.00016438,2]
[333944111,1722643842624,-500.0,0.00016438,2]
[333944113,1722643842634,-500.0,0.00016438,2]
[333944115,1722643842647,-500.0,0.00016438,2]
[333944117,1722643842657,-500.0,0.00016438,2]
[333944119,1722643842666,-500.0,0.00016438,2]
[333944121,1722643842676,-1237.68,0.00016438,2]
[333944123,1722643842685,-1193.15,0.00016438,2]
[333944125,1722643842695,-500.0,0.00016438,2]
[333944127,1722643842705,-500.0,0.00016438,2]
[333944129,1722643842715,-500.0,0.00016438,2]
[333944131,1722643842724,-500.0,0.00016438,2]
[333944133,1722643842733,-500.0,0.00016438,2]
[333944134,1722643842743,-500.0,0.00016438,2]
[333944136,1722643842754,-500.0,0.00016438,2]
[333944138,1722643842765,-996.01,0.00016438,2]
[333944140,1722643842775,-500.0,0.00016438,2]
[333944142,1722643842784,-500.0,0.00016438,2]
[333944144,1722643842794,-500.0,0.00016438,2]
[333944146,1722643842804,-1136.16,0.00016438,2]
[333944149,1722643842815,-575.6,0.00016438,2]
[333944150,1722643842824,-500.0,0.00016438,2]
[333944152,1722643842834,-500.0,0.00016438,2]
[333944155,1722643842845,-150.0,0.00016438,2]
[333944157,1722643842855,-550.86,0.00016438,2]
[333944158,1722643842864,-500.0,0.00016438,2]
[333944160,1722643842874,-500.0,0.00016438,2]
[333944162,1722643842884,-585.92,0.00016438,2]
[333944164,1722643842895,-500.0,0.00016438,2]
[333944167,1722643842905,-500.0,0.00016438,2]
[333944170,1722643842916,-500.0,0.00016438,2]
[333944172,1722643842926,-500.0,0.00016438,2]
[333944174,1722643842936,-1707.63,0.00016438,2]
[333944176,1722643842946,-500.0,0.00016438,2]
[333944178,1722643842955,-500.0,0.00016438,2]
[333944180,1722643842965,-953.5,0.00016438,2]
[333944181,1722643842974,-500.0,0.00016438,2]
[333944184,1722643842984,-834.9,0.00016438,2]
[333944186,1722643842994,-1460.86,0.00016438,2]
[333944188,1722643843003,-644.78,0.00016438,2]
[333944190,1722643843013,-500.0,0.00016438,2]
[333944192,1722643843024,-1920.95,0.00016438,2]
[333944194,1722643843033,-500.0,0.00016438,2]
[333944196,1722643843042,-0.46045887,0.00016438,2]
[333944199,1722643843061,-499.53954113,0.00016438,2]
[333944201,1722643843072,-500.0,0.00016438,2]
[333944203,1722643843081,-500.0,0.00016438,2]
[333944205,1722643843091,-500.0,0.00016438,2]
[333944207,1722643843101,-500.0,0.00016438,2]
[333944209,1722643843110,-725.56,0.00016438,2]
[333944211,1722643843120,-500.0,0.00016438,2]
[333944213,1722643843129,-500.0,0.00016438,2]
[333944215,1722643843140,-1722.84,0.00016438,2]
[333944217,1722643843150,-202.36045887,0.00016438,2]
[333944245,1722643843423,-500.0,0.00012883,2]
[333944248,1722643843439,-94.83,0.00012883,2]
[333944250,1722643843450,-594.83,0.00013074,2]
[333944252,1722643843461,-594.83,0.00013174,2]
[333944253,1722643843472,-139.51,0.00016438,2]
[333944256,1722643843488,-158.12954113,0.00016438,2]
[333944258,1722643843498,-118.78107399,0.00016438,2]
[333944260,1722643843516,-486.20892601,0.00016438,2]
[333944262,1722643843526,-1065.44,0.00016438,2]
[333944264,1722643843537,-500.0,0.00016438,2]
[333944266,1722643843547,-500.0,0.00016438,2]
[333944268,1722643843557,-967.4,0.00016438,2]
[333944270,1722643843567,-1067.84,0.00016438,2]
[333944272,1722643843576,-500.0,0.00016438,2]
[333944274,1722643843585,-804.87,0.00016438,2]
[333944276,1722643843595,-500.0,0.00016438,2]
[333944278,1722643843604,-500.0,0.00016438,2]
[333944280,1722643843614,-500.0,0.00016438,2]
[333944282,1722643843623,-500.0,0.00016438,2]
[333944284,1722643843633,-525.63,0.00016438,2]
[333944286,1722643843643,-500.0,0.00016438,2]
[333944287,1722643843652,-500.0,0.00016438,2]
[333944288,1722643843662,-1314.76,0.00016438,2]
[333944289,1722643843671,-500.0,0.00016438,2]
[333944320,1722643844019,-638.04,0.00016438,2]
[333944325,1722643844052,-1197.52,0.00016438,2]
[333944327,1722643844063,-500.0,0.00016438,2]
[333944329,1722643844072,-151.0,0.00016438,2]
[333944331,1722643844082,-500.0,0.00016438,2]
[333944333,1722643844091,-500.0,0.00016438,2]
[333944335,1722643844100,-500.0,0.00016438,2]
[333944337,1722643844110,-500.0,0.00016438,2]
[333944339,1722643844119,-500.0,0.00016438,2]
[333944341,1722643844129,-500.0,0.00016438,2]
[333944342,1722643844140,-500.0,0.00016438,2]
[333944344,1722643844151,-500.0,0.00016438,2]
[333944347,1722643844162,-672.79,0.00016438,2]
[333944349,1722643844172,-500.0,0.00016438,2]
[333944350,1722643844182,-500.0,0.00016438,2]
[333944351,1722643844191,-2586.73,0.00016438,2]
[333944352,1722643844200,-643.11,0.00016438,2]
[333944353,1722643844209,-1548.46,0.00016438,2]
[333944354,1722643844219,-1313.65,0.00016438,2]
[333944355,1722643844229,-500.0,0.00016438,2]
[333944356,1722643844239,-500.0,0.00016438,2]
[333944357,1722643844249,-500.0,0.00016438,2]
[333944358,1722643844258,-500.0,0.00016438,2]
[333944359,1722643844268,-783.76,0.00016438,2]
[333944360,1722643844278,-500.0,0.00016438,2]
[333944362,1722643844288,-500.0,0.00016438,2]
[333944364,1722643844298,-500.0,0.00016438,2]
[333944366,1722643844309,-500.0,0.00016438,2]
[333944368,1722643844319,-811.57,0.00016438,2]
[333944370,1722643844329,-1507.15,0.00016438,2]
[333944371,1722643844340,-500.0,0.00016438,2]
[333944373,1722643844351,-500.0,0.00016438,2]
[333944375,1722643844362,-500.0,0.00016438,2]
[333944377,1722643844372,-500.0,0.00016438,2]
[333944379,1722643844383,-500.0,0.00016438,2]
[333944381,1722643844395,-500.0,0.00016438,2]
[333944383,1722643844405,-500.0,0.00016438,2]
[333944385,1722643844415,-1690.74,0.00016438,2]
[333944387,1722643844424,-500.0,0.00016438,2]
[333944389,1722643844433,-500.0,0.00016438,2]
[333944391,1722643844443,-500.0,0.00016438,2]
[333944393,1722643844453,-470.64821522,0.00016438,2]
[333944394,1722643844464,-500.0,0.00016438,2]
[333944396,1722643844474,-2526.68,0.00016438,2]
[333944398,1722643844483,-500.0,0.00016438,2]
[333944400,1722643844493,-849.57,0.00016438,2]
[333944402,1722643844503,-500.0,0.00016438,2]
[333944404,1722643844513,-582.51,0.00016438,2]
[333944406,1722643844522,-1082.68,0.00016438,2]
[333944408,1722643844532,-560.45,0.00016438,2]
[333944409,1722643844543,-500.0,0.00016438,2]
[333944411,1722643844553,-500.0,0.00016438,2]
[333944413,1722643844563,-179.46931492,0.00016438,2]
[333944415,1722643844572,-849.57,0.00016438,2]
[333944417,1722643844582,-500.0,0.00016438,2]
[333944419,1722643844591,-1198.63,0.00016438,2]
[333944420,1722643844601,-500.0,0.00016438,2]
[333944421,1722643844610,-1334.23,0.00016438,2]
[333944422,1722643844622,-500.0,0.00016438,2]
[333944423,1722643844632,-500.0,0.00016438,2]
[333944425,1722643844642,-501.42,0.00016438,2]
[333944427,1722643844651,-500.0,0.00016438,2]
[333944429,1722643844661,-500.0,0.00016438,2]
[333944430,1722643844670,-608.31,0.00016438,2]
[333944432,1722643844679,-948.24,0.00016438,2]
[333944434,1722643844689,-500.0,0.00016438,2]
[333944436,1722643844698,-500.0,0.00016438,2]
[333944438,1722643844707,-500.0,0.00016438,2]
[333944440,1722643844717,-500.0,0.00016438,2]
[333944442,1722643844726,-500.0,0.00016438,2]
[333944444,1722643844736,-500.0,0.00016438,2]
[333944445,1722643844745,-500.0,0.00016438,2]
[333944447,1722643844755,-500.0,0.00016438,2]
[333944449,1722643844764,-1341.7,0.00016438,2]
[333944451,1722643844774,-500.0,0.00016438,2]
[333944453,1722643844783,-968.65,0.00016438,2]
[333944455,1722643844792,-1681.98,0.00016438,2]
[333944457,1722643844803,-500.0,0.00016438,2]
[333944459,1722643844815,-1501.23,0.00016438,2]
[333944461,1722643844824,-500.0,0.00016438,2]
[333944463,1722643844836,-500.0,0.00016438,2]
[333944465,1722643844846,-760.68,0.00016438,2]
[333944467,1722643844856,-500.0,0.00016438,2]
[333944469,1722643844867,-500.0,0.00016438,2]
[333944471,1722643844877,-1439.88,0.00016438,2]
[333944473,1722643844886,-1184.12,0.00016438,2]
[333944475,1722643844897,-1071.38,0.00016438,2]
[333944477,1722643844906,-500.0,0.00016438,2]
[333944479,1722643844916,-875.43,0.00016438,2]
[333944481,1722643844925,-680.38,0.00016438,2]
[333944482,1722643844935,-500.0,0.00016438,2]
[333944485,1722643844945,-683.21,0.00016438,2]
[333944487,1722643844954,-500.0,0.00016438,2]
[333944489,1722643844964,-500.0,0.00016438,2]
[333944491,1722643844973,-579.2,0.00016438,2]
[333944493,1722643844983,-957.74,0.00016438,2]
[333944495,1722643844993,-500.0,0.00016438,2]
[333944497,1722643845002,-500.0,0.00016438,2]
[333944499,1722643845012,-500.0,0.00016438,2]
[333944501,1722643845022,-500.0,0.00016438,2]
[333944503,1722643845031,-715.23,0.00016438,2]
[333944505,1722643845042,-500.0,0.00016438,2]
[333944506,1722643845051,-677.6,0.00016438,2]
[333944507,1722643845062,-823.06,0.00016438,2]
[333944508,1722643845071,-500.0,0.00016438,2]
[333944509,1722643845081,-1181.86,0.00016438,2]
[333944510,1722643845091,-500.0,0.00016438,2]
[333944511,1722643845101,-500.0,0.00016438,2]
[333944512,1722643845110,-1590.56,0.00016438,2]
[333944513,1722643845119,-1709.84,0.00016438,2]
[333944514,1722643845129,-500.0,0.00016438,2]
[333944515,1722643845139,-500.0,0.00016438,2]
[333944516,1722643845150,-1402.49,0.00016438,2]
[333944517,1722643845160,-867.2,0.00016438,2]
[333944518,1722643845169,-500.0,0.00016438,2]
[333944519,1722643845179,-2323.77,0.00016438,2]
[333944520,1722643845188,-1169.71,0.00016438,2]
[333944521,1722643845198,-500.0,0.00016438,2]
[333944522,1722643845207,-500.0,0.00016438,2]
[333944523,1722643845217,-2139.91,0.00016438,2]
[333944524,1722643845227,-500.0,0.00016438,2]
[333944525,1722643845236,-1014.86,0.00016438,2]
[333944526,1722643845246,-500.0,0.00016438,2]
[333944527,1722643845255,-2715.71,0.00016438,2]
[333944528,1722643845265,-736.07,0.00016438,2]
[333944529,1722643845276,-660.1,0.00016438,2]
[333944530,1722643845285,-500.0,0.00016438,2]
[333944531,1722643845294,-1928.98,0.00016438,2]
[333944532,1722643845304,-771.75,0.00016438,2]
[333944533,1722643845314,-500.0,0.00016438,2]
[333944534,1722643845323,-500.0,0.00016438,2]
[333944535,1722643845333,-735.05,0.00016438,2]
[333944536,1722643845343,-500.0,0.00016438,2]
[333944537,1722643845353,-500.0,0.00016438,2]
[333944538,1722643845362,-500.0,0.00016438,2]
[333944539,1722643845372,-500.0,0.00016438,2]
[333944540,1722643845381,-500.0,0.00016438,2]
[333944541,1722643845391,-500.0,0.00016438,2]
[333944542,1722643845400,-905.74,0.00016438,2]
[333944543,1722643845410,-737.86,0.00016438,2]
[333944544,1722643845419,-1551.6,0.00016438,2]
[333944545,1722643845429,-1628.11,0.00016438,2]
[333944546,1722643845440,-500.0,0.00016438,2]
[333944547,1722643845449,-500.0,0.00016438,2]
[333944548,1722643845464,-404.03902012,0.00016438,2]
[333944549,1722643845501,-500.0,0.00016438,2]
[333944550,1722643845511,-500.0,0.00016438,2]
[333944551,1722643845521,-1012.52,0.00016438,2]
[333944553,1722643845531,-500.0,0.00016438,2]
[333944554,1722643845542,-500.0,0.00016438,2]
[333944555,1722643845552,-1469.31,0.00016438,2]
[333944556,1722643845561,-1291.69,0.00016438,2]
[333944557,1722643845571,-500.0,0.00016438,2]
[333944558,1722643845581,-1488.35,0.00016438,2]
[333944559,1722643845590,-500.0,0.00016438,2]
[333944560,1722643845600,-500.0,0.00016438,2]
[333944561,1722643845610,-649.61,0.00016438,2]
[333944562,1722643845619,-500.0,0.00016438,2]
[333944563,1722643845629,-3482.75,0.00016438,2]
[333944564,1722643845640,-1750.07,0.00016438,2]
[333944565,1722643845650,-500.0,0.00016438,2]
[333944566,1722643845659,-882.18,0.00016438,2]
[333944567,1722643845669,-500.0,0.00016438,2]
[333944568,1722643845679,-500.0,0.00016438,2]
[333944569,1722643845689,-2666.21,0.00016438,2]
[333944570,1722643845699,-500.0,0.00016438,2]
[333944571,1722643845709,-2309.07,0.00016438,2]
[333944572,1722643845719,-500.0,0.00016438,2]
[333944573,1722643845729,-500.0,0.00016438,2]
[333944574,1722643845739,-500.0,0.00016438,2]
[333944575,1722643845750,-1049.35,0.00016438,2]
[333944576,1722643845759,-500.0,0.00016438,2]
[333944577,1722643845769,-881.71,0.00016438,2]
[333944578,1722643845779,-500.0,0.00016438,2]
[333944579,1722643845789,-2764.27,0.00016438,2]
[333944580,1722643845798,-682.53,0.00016438,2]
[333944581,1722643845808,-500.0,0.00016438,2]
[333944582,1722643845818,-2086.8,0.00016438,2]
[333944583,1722643845828,-500.0,0.00016438,2]
[333944584,1722643845837,-500.0,0.00016438,2]
[333944585,1722643845848,-500.0,0.00016438,2]
[333944586,1722643845857,-839.7,0.00016438,2]
[333944587,1722643845867,-500.0,0.00016438,2]
[333944588,1722643845877,-761.87,0.00016438,2]
[333944589,1722643845886,-500.0,0.00016438,2]
[333944590,1722643845897,-500.0,0.00016438,2]
[333944591,1722643845907,-583.89,0.00016438,2]
[333944592,1722643845917,-1655.97,0.00016438,2]
[333944593,1722643845926,-500.0,0.00016438,2]
[333944594,1722643845936,-500.0,0.00016438,2]
[333944595,1722643845946,-500.0,0.00016438,2]
[333944596,1722643845955,-500.0,0.00016438,2]
[333944597,1722643845965,-500.0,0.00016438,2]
[333944598,1722643845975,-500.0,0.00016438,2]
[333944599,1722643845985,-524.35,0.00016438,2]
[333944600,1722643845996,-509.2,0.00016438,2]
[333944601,1722643846007,-500.0,0.00016438,2]
[333944602,1722643846017,-500.0,0.00016438,2]
[333944603,1722643846027,-500.0,0.00016438,2]
[333944604,1722643846037,-500.0,0.00016438,2]
[333944605,1722643846047,-500.0,0.00016438,2]
[333944606,1722643846057,-590.27,0.00016438,2]
[333944607,1722643846067,-901.75,0.00016438,2]
[333944608,1722643846077,-500.0,0.00016438,2]
[333944609,1722643846086,-1347.2,0.00016438,2]
[333944610,1722643846096,-500.0,0.00016438,2]
[333944611,1722643846107,-500.0,0.00016438,2]
[333944612,1722643846117,-2049.98,0.00016438,2]
[333944613,1722643846127,-500.0,0.00016438,2]
[333944614,1722643846137,-500.0,0.00016438,2]
[333944615,1722643846148,-1008.91,0.00016438,2]
[333944616,1722643846158,-735.73,0.00016438,2]
[333944617,1722643846168,-500.0,0.00016438,2]
[333944618,1722643846178,-745.75,0.00016438,2]
[333944619,1722643846188,-500.0,0.00016438,2]
[333944620,1722643846198,-687.46,0.00016438,2]
[333944621,1722643846207,-990.36,0.00016438,2]
[333944622,1722643846217,-500.0,0.00016438,2]
[333944623,1722643846227,-1491.44,0.00016438,2]
[333944624,1722643846237,-1353.83,0.00016438,2]
[333944625,1722643846247,-562.77,0.00016438,2]
[333944626,1722643846257,-544.07,0.00016438,2]
[333944627,1722643846267,-2315.03,0.00016438,2]
[333944628,1722643846278,-1532.48,0.00016438,2]
[333944629,1722643846288,-500.0,0.00016438,2]
[333944630,1722643846297,-500.0,0.00016438,2]
[333944631,1722643846307,-500.0,0.00016438,2]
[333944632,1722643846317,-151.0,0.00016438,2]
[333944633,1722643846327,-500.0,0.00016438,2]
[333944634,1722643846337,-500.0,0.00016438,2]
[333944635,1722643846347,-1569.33,0.00016438,2]
[333944636,1722643846357,-541.74,0.00016438,2]
[333944637,1722643846366,-1021.93,0.00016438,2]
[333944638,1722643846375,-340.81452351,0.00016438,2]
[333944639,1722643847253,-331.84547649,0.00016438,2]
[333944640,1722643847263,-500.0,0.00016438,2]
[333944641,1722643847273,-384.31296039,0.00016438,2]
[333944642,1722643847288,-340.15000015,0.00016438,2]
[333944643,1722643847300,-275.53703946,0.00016438,2]
[333944644,1722643847309,-28.74219207,0.00016438,2]
[333944645,1722643847321,-841.15780793,0.00016438,2]
[333944646,1722643847330,-500.0,0.00016438,2]
[333944647,1722643847340,-500.0,0.00016438,2]
[333944648,1722643847349,-617.39,0.00016438,2]
[333944649,1722643847360,-2967.89,0.00016438,2]
[333944650,1722643847369,-500.0,0.00016438,2]
[333944651,1722643847379,-2279.46,0.00016438,2]
[333944652,1722643847390,-2360.71,0.00016438,2]
[333944653,1722643847405,-661.96,0.00016438,2]
[333944654,1722643847415,-500.0,0.00016438,2]
[333944655,1722643847425,-755.03,0.00016438,2]
[333944656,1722643847435,-500.0,0.00016438,2]
[333944657,1722643847445,-500.0,0.00016438,2]
[333944658,1722643847455,-1121.72,0.00016438,2]
[333944659,1722643847468,-1666.87,0.00016438,2]
[333944660,1722643847477,-500.0,0.00016438,2]
[333944661,1722643847487,-500.0,0.00016438,2]
[333944662,1722643847497,-2203.37,0.00016438,2]
[333944663,1722643847507,-500.0,0.00016438,2]
[333944664,1722643847517,-500.0,0.00016438,2]
[333944665,1722643847527,-999.76,0.00016438,2]
[333944666,1722643847538,-500.0,0.00016438,2]
[333944667,1722643847547,-500.0,0.00016438,2]
[333944668,1722643847556,-216.47216432,0.00016438,2]
[333944669,1722643847570,-518.7823258,0.00016438,2]
[333944670,1722643847582,-118.41550988,0.00016438,2]
[333944671,1722643847591,-338.65107269,0.00016438,2]
[333944672,1722643847628,-161.34892731,0.00016438,2]
[333944673,1722643847638,-500.0,0.00016438,2]
[333944674,1722643847651,-1049.39,0.00016438,2]
[333944675,1722643847663,-500.0,0.00016438,2]
[333944676,1722643847673,-500.0,0.00016438,2]
[333944677,1722643847682,-758.0,0.00016438,2]
[333944678,1722643847692,-500.0,0.00016438,2]
[333944679,1722643847701,-500.0,0.00016438,2]
[333944680,1722643847710,-500.0,0.00016438,2]
[333944681,1722643847720,-522.69,0.00016438,2]
[333944682,1722643847729,-669.76297299,0.00016438,2]
[333944683,1722643847741,-436.46702701,0.00016438,2]
[333944684,1722643847750,-610.22335019,0.00016438,2]
[333944685,1722643847762,-988.74664981,0.00016438,2]
[333944686,1722643847771,-237.01200603,0.00016438,2]
[333944687,1722643847795,-272.10799397,0.00016438,2]
[333944688,1722643847805,-1547.10196867,0.00016438,2]
[333944689,1722643847817,-366.45803133,0.00016438,2]
[333944690,1722643847826,-500.0,0.00016438,2]
[333944691,1722643847836,-1960.54,0.00016438,2]
[333944692,1722643847846,-1737.99624555,0.00016438,2]
[333944693,1722643847858,-86.53375445,0.00016438,2]
[333944694,1722643847868,-333.23863526,0.00016438,2]
[333944695,1722643847879,-166.76136474,0.00016438,2]
[333944696,1722643847888,-1489.82383914,0.00016438,2]
[333944697,1722643847901,-657.47616086,0.00016438,2]
[333944698,1722643847911,-500.0,0.00016438,2]
[333944699,1722643847921,-187.63656044,0.00016438,2]
[333944700,1722643847930,-500.0,0.00016438,2]
[333944701,1722643847940,-790.86,0.00016438,2]
[333944702,1722643847949,-500.0,0.00016438,2]
[333944703,1722643847959,-500.0,0.00016438,2]
[333944704,1722643847968,-500.0,0.00016438,2]
[333944705,1722643847978,-500.0,0.00016438,2]
[333944706,1722643847987,-1246.9,0.00016438,2]
[333944707,1722643847997,-500.0,0.00016438,2]
[333944708,1722643848006,-1200.16,0.00016438,2]
[333944709,1722643848016,-400.0,0.00016438,2]
[333944710,1722643848025,-500.0,0.00016438,2]
[333944711,1722643848035,-627.21,0.00016438,2]
[333944712,1722643848044,-71.36623269,0.00016438,2]
[333944713,1722643848057,-1453.89376731,0.00016438,2]
[333944714,1722643848067,-2987.29,0.00016438,2]
[333944715,1722643848077,-500.0,0.00016438,2]
[333944716,1722643848086,-500.0,0.00016438,2]
[333944717,1722643848095,-293.47859074,0.00016438,2]
[333944718,1722643850330,-376.0,0.00012422,2]